{"text_format":"1","workbook":"xlsx","n_sheets":11,"sheets":["Right_Triangle","Single_Trap","TWin_Trap","Twin_Trap_ShortLeg","Twin_Trap_LongLeg","Triple_Trap","Triple_Trap_ShortLeg","Triple_Trap_LongLeg","Cont._RadiusLeg","Cont._Radius","Cont_R_Cent.Hgt"],"not_rendered":{"charts":0,"images":0,"macros":1,"external_links":0,"defined_names":53,"comments":0,"pivot_tables":0},"unopened":[],"bounds":{"document_bytes":16777216,"sheet_cells":100000,"rows_first":2000,"rows_last":500,"rows_between":2000,"halvings":0,"cell_chars":16384,"cell_head_chars":4096},"cells_cut":0,"cells_raw":0,"read":"whole","date_system":"1900"}

{"sheet":"Right_Triangle","index":0,"n_rows":3,"n_cols":32,"rows_kept":3,"cut":false,"hidden":false,"merged":[[2,11,2,12]]}
[null,null,null,null,null,null,null,null,null,null,null,null,null,null,null,null,null,null,null,null,null,null,null,null,null,null,null,null,null,"Radians","Degree","Slope"]
[null,null,null,null,null,null,null,null,null,null,null,null,null,null,null,null,null,null,null,null,null,null,null,null,null,null,null,null,"F",{"$f":"IF(AND($L$19>0,$E$12>0),ATAN(($E$12)/$L$19),0)","v":0},{"$f":"DEGREES($AD$2)","v":0},{"$f":"IF($AD$2>0,ROUND(12*($E$12/$L$19),3),0)","v":0}]
[null,null,null,null,null,null,null,"Roof Pitch:",null,{"$f":"AF2","v":0},{"$f":"IF(J3>0,\"/ 12\",)","v":0},{"$f":"IF(J3>0,DEGREES(ATAN(J3/12)),0)","v":0},null,{"$f":"IF(L3>0,\"Degree\",0)","v":0}]

{"sheet":"Single_Trap","index":1,"n_rows":5,"n_cols":35,"rows_kept":5,"cut":false,"hidden":false,"merged":[[13,3,14,5],[4,12,5,12],[4,13,5,13],[4,14,5,14],[4,15,5,19],[4,9,5,11],[16,17,17,19],[25,7,25,9],[21,12,23,12],[23,7,24,9],[12,9,15,9]]}
[]
[null,null,null,null,null,null,null,null,null,null,null,null,null,null,null,null,null,null,null,null,null,null,null,null,null,null,null,null,null,null,null,null,"Radians","Degree","Slope"]
[null,null,null,null,null,null,null,null,null,null,null,null,null,null,null,null,null,null,null,null,null,null,null,null,null,null,null,null,null,null,null,"F",{"$f":"IF(AND($M$22>0,$D$14>0,$R$17>0),ATAN(($D$14-$R$17)/$M$22),0)","v":0},{"$f":"DEGREES($AG$3)","v":0},{"$f":"IF($AG$3>0,ROUND(12*(($D$14-$R$17)/$M$22),3),0)","v":0}]
[]
[null,null,null,null,null,null,null,null,null,"Roof Pitch:",null,null,{"$f":"AI3","v":0},{"$f":"IF(M5>0,\"/ 12\",)","v":0},{"$f":"IF(M5>0,DEGREES(ATAN(M5/12)),0)","v":0},{"$f":"IF(O5>0,\"Degree\",0)","v":0}]

{"sheet":"TWin_Trap","index":2,"n_rows":31,"n_cols":41,"rows_kept":31,"cut":false,"hidden":false,"merged":[[20,24,21,26],[30,12,32,16],[25,9,27,9],[25,19,27,19],[13,2,14,4],[27,12,28,16],[16,16,19,16],[16,12,19,12],[2,11,3,18],[7,20,8,20],[7,19,8,19],[7,17,8,17],[7,11,8,13],[7,14,8,16]]}
[]
[null,null,null,null,null,null,null,null,null,null,null,null,null,null,null,null,null,null,null,null,null,null,null,null,null,null,null,null,null,null,null,null,null,null,null,null,null,null,"Radians","Degree","Slope"]
[null,null,null,null,null,null,null,null,null,null,null,"Twin Trapezoid",null,null,null,null,null,null,null,null,null,null,null,null,null,null,null,null,null,null,null,null,null,null,null,null,null,"F",{"$f":"IF(AND($M$31>0,$C$14>0),ATAN(($C$14-$Y$21)/$M$31),0)","v":0},{"$f":"DEGREES($AM$3)","v":0},{"$f":"IF(AM3>0,ROUND(12*((C14-Y21)/M31),3),0)","v":0}]
[]
[]
[]
[]
[null,null,null,null,null,null,null,null,null,null,null,"Roof Pitch:",null,null,{"$f":"AO3","v":0},null,null,{"$f":"IF(O8>0,\"/ 12\",)","v":0},null,{"$f":"AN3","v":0},{"$f":"IF(T8>0,\"Degree\",0)","v":0}]
[]
[null,null,null,null,null,null,null,null,null,null,null,null,null,null,null,null,null,{"$f":"IF(AND($Y$21<6,OR($Y$21<0,$Y$21>0)),\"Short Leg dimension must be greater than 6 inches\",0)","v":0}]
[]
[]
[]
[]
[]
[null,null,null,null,null,null,null,null,null,null,null,null,null,null,null,null,null,null,null,null,null,null,null,null,null,null,"ZERO"]
[null,null,null,null,null,null,null,null,null,null,null,null,{"$f":"IF($AM$3>0,$C$14-(TAN($AM$3)*$J$26),0)","v":0},null,null,null,{"$f":"IF($AM$3>0,$Y$21+(TAN($AM$3)*$T$26),0)","v":0},null,null,null,null,null,null,null,null,null,"FOR"]
[null,null,null,null,null,null,null,null,null,null,null,null,null,null,null,null,null,null,null,null,null,null,null,null,null,null,"TRIANGLE"]
[]
[]
[]
[]
[]
[]
[]
[]
[]
[]
[]
[]
[null,null,null,null,null,null,null,null,null,null,null,null,{"$f":"IF(AND($J$26>0,$T$26>0,$C$14>0),SUM($J$26,$M$28,$T$26),0)","v":0}]

{"sheet":"Twin_Trap_ShortLeg","index":3,"n_rows":31,"n_cols":41,"rows_kept":31,"cut":false,"hidden":false,"merged":[[20,24,21,26],[30,12,32,16],[2,11,3,18],[25,19,27,19],[6,10,7,12],[6,14,7,16],[6,17,7,17],[6,19,7,19],[6,20,7,20],[13,2,14,4],[27,12,28,16],[16,16,19,16],[16,12,19,12],[3,9,4,9],[25,9,27,9]]}
[]
[null,null,null,null,null,null,null,null,null,null,null,null,null,null,null,null,null,null,null,null,null,null,null,null,null,null,null,null,null,null,null,null,null,null,null,null,null,null,"Radians","Degree","Slope"]
[null,null,null,null,null,null,null,null,null,null,null,"Twin Trapezoid",null,null,null,null,null,null,null,null,null,null,null,null,null,null,null,null,null,null,null,null,null,null,null,null,null,"F",{"$f":"IF($O$7>0,ATAN($O$7/12),0)","v":0},{"$f":"DEGREES($AM$3)","v":0},{"$f":"O7","v":0}]
[]
[]
[]
[null,null,null,null,null,null,null,null,null,null,"Roof Pitch:",null,null,null,null,null,null,"/ 12",null,{"$f":"AN3","v":0},{"$f":"IF(T7>0,\"Degree\",0)","v":0}]
[]
[]
[]
[null,null,null,null,null,null,null,null,null,null,null,null,null,null,null,null,null,null,{"$f":"IF(AND($Y$21<6,OR($Y$21<0,$Y$21>0)),\"Short Leg dimension must be greater than 6 inches\",0)","v":0}]
[]
[]
[]
[]
[]
[null,null,null,null,null,null,null,null,null,null,null,null,{"$f":"IF(AND($AM$3>0,$M$31>0,$Y$21>0),$C$14-(TAN($AM$3)*$J$26),0)","v":0},null,null,null,{"$f":"IF(AND($AM$3>0,$M$31>0,$Y$21>0),$Y$21+(TAN($AM$3)*$T$26),0)","v":0}]
[]
[]
[]
[null,null,null,null,null,null,null,null,null,null,null,null,null,null,null,null,null,null,null,null,null,null,null,null,{"$f":"IF(AND($C$14>0,$AM$3>0,$M$31>0),$C$14-(TAN($AM$3)*$M$31),0)","v":0}]
[]
[]
[]
[]
[]
[]
[]
[]
[]
[null,null,null,null,null,null,null,null,null,null,null,null,{"$f":"IF(AND($J$26>0,$T$26>0,$C$14>0,$O$7>0),SUM($J$26,$M$28,$T$26),0)","v":0}]

{"sheet":"Twin_Trap_LongLeg","index":4,"n_rows":31,"n_cols":41,"rows_kept":31,"cut":false,"hidden":false,"merged":[[13,2,14,4],[27,12,28,16],[16,16,19,16],[16,12,19,12],[20,24,21,26],[30,12,32,16],[3,9,4,9],[25,9,27,9],[25,19,27,19],[7,14,8,16],[7,17,8,17],[7,11,8,13],[7,19,8,19],[2,11,3,18],[7,20,8,20]]}
[]
[null,null,null,null,null,null,null,null,null,null,null,null,null,null,null,null,null,null,null,null,null,null,null,null,null,null,null,null,null,null,null,null,null,null,null,null,null,null,"Radians","Degree","Slope"]
[null,null,null,null,null,null,null,null,null,null,null,"Twin Trapezoid",null,null,null,null,null,null,null,null,null,null,null,null,null,null,null,null,null,null,null,null,null,null,null,null,null,"F",{"$f":"IF($O$8>0,ATAN($O$8/12),0)","v":0},{"$f":"DEGREES($AM$3)","v":0},{"$f":"O8","v":0}]
[]
[]
[]
[]
[null,null,null,null,null,null,null,null,null,null,null,"Roof Pitch:",null,null,null,null,null,"/ 12",null,{"$f":"AN3","v":0},{"$f":"IF(T8>0,\"Degree\",0)","v":0}]
[]
[]
[null,null,null,null,null,null,null,null,null,null,null,null,null,null,null,null,null,null,{"$f":"IF(AND($Y$21<6,OR($Y$21<0,$Y$21>0)),\"Short Leg dimension must be greater than 6 inches\",0)","v":0}]
[]
[]
[null,null,{"$f":"IF(AND($AM$3>0,$M$31>0),$Y$21+(TAN($AM$3)*$M$31),0)","v":0}]
[]
[null,null,null,null,null,null,null,null,null,null,null,null,null,null,null,null,null,null,null,null,null,null,null,null,null,null,"ZERO"]
[null,null,null,null,null,null,null,null,null,null,null,null,{"$f":"IF(AND($AM$3>0,$M$31>0),$C$14-(TAN($AM$3)*$J$26),0)","v":0},null,null,null,{"$f":"IF(AND($AM$3>0,$M$31>0),$Y$21+(TAN($AM$3)*$T$26),0)","v":0},null,null,null,null,null,null,null,null,null,"FOR"]
[null,null,null,null,null,null,null,null,null,null,null,null,null,null,null,null,null,null,null,null,null,null,null,null,null,null,"TIRANGLE"]
[]
[]
[null,null,null,null,null,null,null,null,null,null,null,null,null,null,null,null,null,null,null,null,null,null,null,null,0]
[]
[]
[]
[]
[]
[]
[]
[]
[]
[null,null,null,null,null,null,null,null,null,null,null,null,{"$f":"IF(AND($J$26>0,$T$26>0,$O$8>0),SUM($J$26,$M$28,$T$26),0)","v":0}]

{"sheet":"Triple_Trap","index":5,"n_rows":32,"n_cols":42,"rows_kept":32,"cut":false,"hidden":false,"merged":[[21,33,22,35],[7,26,8,26],[26,28,28,28],[18,21,21,21],[18,25,21,25],[28,21,29,25],[1,17,2,20],[31,18,33,19],[13,2,15,4],[28,12,29,16],[17,16,20,16],[17,12,20,12],[3,9,4,9],[26,9,28,9],[26,19,28,19]]}
[]
[null,null,null,null,null,null,null,null,null,null,null,null,null,null,null,null,null,"Triple Trapezoid",null,null,null,null,null,null,null,null,null,null,null,null,null,null,null,null,null,null,null,null,null,"Radians","Degree","Slope"]
[null,null,null,null,null,null,null,null,null,null,null,null,null,null,null,null,null,null,null,null,null,null,null,null,null,null,null,null,null,null,null,null,null,null,null,null,null,null,"F",{"$f":"IF(AND($S$32>0,$C$14>0),ATAN(($C$14-$AH$22)/$S$32),0)","v":0},{"$f":"DEGREES($AN$3)","v":0},{"$f":"IF(AN3>0,ROUND(12*((C14-AH22)/S32),3),0)","v":0}]
[]
[null,null,null,null,null,null,null,null,null,null,null,null,null,null,null,null,null,"Roof Pitch:",{"$f":"AP3","v":0},{"$f":"IF(S5>0,\"/ 12\",)","v":0},{"$f":"AO3","v":0},{"$f":"IF(U5>0,\"Degree\",0)","v":0}]
[]
[null,null,null,null,null,null,null,null,null,null,null,null,null,null,null,null,{"$f":"IF(AND($AH$22<6,OR($AH$22<0,$AH$22>0)),\"Short Leg dimension must be greater than 6 inches\",0)","v":0}]
[]
[]
[]
[]
[]
[]
[]
[]
[]
[]
[null,null,null,null,null,null,null,null,null,null,null,null,{"$f":"IF($AN$3>0,$C$14-(TAN($AN$3)*$J$27),0)","v":0},null,null,null,{"$f":"IF($AN$3>0,$AH$22+(TAN($AN$3)*($T$27+$V$29+$AC$27)),0)","v":0},null,null,null,null,null,null,null,null,null,null,null,null,null,null,null,null,"ZERO FOR"]
[null,null,null,null,null,null,null,null,null,null,null,null,null,null,null,null,null,null,null,null,null,{"$f":"IF($AN$3>0,$C$14-(TAN($AN$3)*($J$27+$M$29+$T$27)),0)","v":0},null,null,null,{"$f":"IF($AN$3>0,$AH$22+(TAN($AN$3)*$AC$27),0)","v":0},null,null,null,null,null,null,null,"TRIANGLE"]
[]
[]
[null,null,null,null,null,null,null,null,null,null,null,null,null,null,null,null,null,null,null,null,null,null,null,null,null,null,null,null,null,null,null,null,null,0]
[]
[]
[]
[]
[]
[]
[]
[]
[]
[null,null,null,null,null,null,null,null,null,null,null,null,null,null,null,null,null,null,{"$f":"IF(AND($J$27>0,$T$27>0,$AC$27>0,$C$14>0),SUM($J$27,$M$29,$T$27,$V$29,$AC$27),0)","v":0}]

{"sheet":"Triple_Trap_ShortLeg","index":6,"n_rows":32,"n_cols":42,"rows_kept":32,"cut":false,"hidden":false,"merged":[[13,2,15,4],[28,12,29,16],[17,16,20,16],[17,12,20,12],[1,17,2,20],[31,18,33,19],[3,9,4,9],[26,9,28,9],[26,19,28,19],[21,33,22,35],[7,26,8,26],[26,28,28,28],[18,21,21,21],[18,25,21,25],[28,21,29,25]]}
[]
[null,null,null,null,null,null,null,null,null,null,null,null,null,null,null,null,null,"Triple Tapezoid",null,null,null,null,null,null,null,null,null,null,null,null,null,null,null,null,null,null,null,null,null,"Radians","Degree","Slope"]
[null,null,null,null,null,null,null,null,null,null,null,null,null,null,null,null,null,null,null,null,null,null,null,null,null,null,null,null,null,null,null,null,null,null,null,null,null,null,"F",{"$f":"IF($S$5>0,ATAN($S$5/12),0)","v":0},{"$f":"DEGREES($AN$3)","v":0},{"$f":"S5","v":0}]
[]
[null,null,null,null,null,null,null,null,null,null,null,null,null,null,null,null,null,"Roof Pitch:",null,"/12",{"$f":"AO3","v":0},{"$f":"IF(U5>0,\"Degree\",0)","v":0}]
[]
[null,null,null,null,null,null,null,null,null,null,null,null,null,null,null,null,null,null,{"$f":"IF(AH22<0,\"LEG HEIGHT CANNOT BE LESS THAN ZOERO\",IF(AND(AH22>0,AH22<6),\"MINIMUM LEG HEIGHT IS 6 INCH\",\"\"))","v":""}]
[]
[]
[]
[]
[]
[]
[]
[]
[]
[]
[null,null,null,null,null,null,null,null,null,null,null,null,{"$f":"IF($AN$3>0,$C$14-(TAN($AN$3)*$J$27),0)","v":0},null,null,null,{"$f":"IF($AN$3>0,$AH$22+(TAN($AN$3)*($T$27+$V$29+$AC$27)),0)","v":0}]
[null,null,null,null,null,null,null,null,null,null,null,null,null,null,null,null,null,null,null,null,null,{"$f":"IF($AN$3>0,$C$14-(TAN($AN$3)*($J$27+$M$29+$T$27)),0)","v":0},null,null,null,{"$f":"IF($AN$3>0,$AH$22+(TAN($AN$3)*$AC$27),0)","v":0}]
[]
[]
[null,null,null,null,null,null,null,null,null,null,null,null,null,null,null,null,null,null,null,null,null,null,null,null,null,null,null,null,null,null,null,null,null,{"$f":"IF(AND(C14>0,S5>0,S32>0),C14-(TAN(AN3)*S32),0)","v":0}]
[]
[]
[]
[]
[]
[]
[]
[]
[]
[null,null,null,null,null,null,null,null,null,null,null,null,null,null,null,null,null,null,{"$f":"IF(AND($J$27>0,$T$27>0,$AC$27>0,$C$14>0),SUM($J$27,$M$29,$T$27,$V$29,$AC$27),0)","v":0}]

{"sheet":"Triple_Trap_LongLeg","index":7,"n_rows":32,"n_cols":41,"rows_kept":32,"cut":false,"hidden":false,"merged":[[21,32,22,34],[7,25,8,25],[26,27,28,27],[18,20,21,20],[18,24,21,24],[28,20,29,24],[1,16,2,19],[31,17,33,18],[13,1,15,3],[28,11,29,15],[17,15,20,15],[17,11,20,11],[3,8,4,8],[26,8,28,8],[26,18,28,18]]}
[]
[null,null,null,null,null,null,null,null,null,null,null,null,null,null,null,null,"Triple Trapezoid",null,null,null,null,null,null,null,null,null,null,null,null,null,null,null,null,null,null,null,null,null,"Radians","Degree","Slope"]
[null,null,null,null,null,null,null,null,null,null,null,null,null,null,null,null,null,null,null,null,null,null,null,null,null,null,null,null,null,null,null,null,null,null,null,null,null,"F",{"$f":"IF($R$5>0,ATAN($R$5/12),0)","v":0},{"$f":"DEGREES($AM$3)","v":0},{"$f":"R5","v":0}]
[]
[null,null,null,null,null,null,null,null,null,null,null,null,null,null,null,null,"Roof Pitch:",null,"/ 12",{"$f":"AN3","v":0},{"$f":"IF(T5>0,\"Degree\",0)","v":0}]
[]
[null,null,null,null,null,null,null,null,null,null,null,null,null,null,null,null,null,{"$f":"IF(AND(AG22>0,AG22<6),\"MINIMUM LEG HEIGHT IS 6 INCH\",\"\")","v":""}]
[]
[]
[]
[]
[]
[]
[null,{"$f":"IF(AND(R5>0,R32>0),AG22+(TAN(AM3)*R32),0)","v":0}]
[]
[]
[]
[null,null,null,null,null,null,null,null,null,null,null,{"$f":"IF($AM$3>0,$B$14-(TAN($AM$3)*$I$27),0)","v":0},null,null,null,{"$f":"IF($AM$3>0,$AG$22+(TAN($AM$3)*($S$27+$U$29+$AB$27)),0)","v":0},null,null,null,null,null,null,null,null,null,null,null,null,null,null,null,null,"ZERO FOR"]
[null,null,null,null,null,null,null,null,null,null,null,null,null,null,null,null,null,null,null,null,{"$f":"IF($AM$3>0,$B$14-(TAN($AM$3)*($I$27+$L$29+$S$27)),0)","v":0},null,null,null,{"$f":"IF($AM$3>0,$AG$22+(TAN($AM$3)*$AB$27),0)","v":0},null,null,null,null,null,null,null,"TRIANGLE"]
[]
[]
[null,null,null,null,null,null,null,null,null,null,null,null,null,null,null,null,null,null,null,null,null,null,null,null,null,null,null,null,null,null,null,null,0]
[]
[]
[]
[]
[]
[]
[]
[]
[]
[null,null,null,null,null,null,null,null,null,null,null,null,null,null,null,null,null,{"$f":"IF(AND($I$27>0,$S$27>0,$AB$27>0),SUM($I$27,$L$29,$S$27,$U$29,$AB$27),0)","v":0}]

{"sheet":"Cont._RadiusLeg","index":8,"n_rows":31,"n_cols":47,"rows_kept":31,"cut":false,"hidden":false,"merged":[[30,19,31,20],[16,24,17,26],[18,35,19,37],[7,2,7,5],[3,13,3,16],[28,7,29,7],[18,2,19,4],[16,10,17,12],[16,13,17,15],[28,12,29,13],[7,35,7,37],[28,32,29,32],[28,26,29,27],[28,19,29,20],[16,27,17,29]]}
[]
[null,null,null,null,null,null,null,null,null,null,null,null,null,null,null,"Continuous Radius with Leg"]
[null,null,null,null,null,null,null,null,null,null,null,null,null,null,null,null,null,null,null,null,null,null,null,null,null,null,null,null,null,null,null,null,null,null,null,null,null,null,null,null,null,null,null,null,"Height:",{"$f":"$Y$17-$C$19","v":0}]
[null,null,null,null,null,null,null,null,null,null,null,null,null,{"$f":"IF($T$31>0,$AT$5,0)","v":0},null,null,null,null,null,null,null,null,null,null,null,null,null,null,null,null,null,null,null,null,null,null,null,null,null,null,null,null,null,null,"Width:",{"$f":"$T$31","v":0}]
[null,null,null,null,null,null,null,null,null,null,null,null,null,null,null,null,null,null,null,null,null,null,null,null,null,null,null,null,null,null,null,null,null,null,null,null,null,null,null,null,null,null,null,null,"R",{"$f":"IF(AND($AT$3>0,$AT$4>0),$AT$3/2+($AT$4^2/(8*$AT$3)),0)","v":0}]
[null,null,null,null,null,null,null,null,null,null,null,null,null,null,null,null,null,null,null,null,null,null,null,null,null,null,null,null,null,null,null,null,null,null,null,null,null,null,null,null,null,null,null,null,"d:",{"$f":"IF(AND($AT$3>0,$AT$4>0),$AT$5-$AT$3,0)","v":0}]
[null,null,null,null,null,null,null,null,null,null,null,null,null,null,null,null,null,null,null,null,null,null,null,null,null,null,null,null,null,null,null,null,null,null,null,null,null,null,null,null,null,null,null,null,"Eyebrow with Leg"]
[null,null,{"$f":"IF($T$31>0,$AT$5,0)","v":0},null,null,null,null,null,null,null,null,null,null,null,null,null,null,null,null,null,null,null,null,null,null,null,null,null,null,null,null,null,null,null,null,{"$f":"IF($T$31>0,$AT$5,0)","v":0}]
[null,null,null,null,null,null,null,null,null,null,null,null,null,null,null,null,null,null,null,null,null,null,null,null,null,null,null,null,null,null,null,null,null,null,null,null,null,null,null,null,null,null,null,null,"F",{"$f":"IF(AND($AT$3>0,$AT$4>0),2*ASIN($T$29/(2*$AT$5)),0)","v":0},{"$f":"DEGREES(AT9)","v":0}]
[null,null,null,null,null,null,null,null,null,null,null,null,null,null,null,null,null,null,null,null,null,null,null,null,null,null,null,null,null,null,null,null,null,null,null,null,null,null,null,null,null,null,null,null,"d:",{"$f":"IF(AND($AT$3>0,$AT$4>0),$AT$5*COS($AT$9/2),0)","v":0}]
[null,null,null,null,null,null,null,null,null,null,null,null,null,null,null,null,null,null,null,null,null,null,null,null,null,null,null,null,null,null,null,null,null,null,null,null,null,null,null,null,null,null,null,null,"Height:",{"$f":"IF(AND($AT$3>0,$AT$4>0),$AT$5-$AT$10,0)","v":0}]
[null,null,null,null,null,null,null,null,null,null,null,null,null,null,null,null,null,null,null,null,null,null,null,null,null,null,null,null,null,null,null,null,null,null,null,null,null,null,null,null,null,null,null,null,"Leg Height:",{"$f":"IF(AND($AT$3>0,$AT$4>0),$Y$17-$AT$11,0)","v":0}]
[null,null,null,null,null,null,null,null,null,null,null,null,null,null,null,null,null,null,null,null,null,null,null,null,null,null,null,null,null,null,null,null,null,null,null,null,null,null,null,null,null,null,null,"1/4 Eyebrow with Leg"]
[]
[null,null,null,null,null,null,null,null,null,null,null,null,null,null,null,null,null,null,null,null,null,null,null,null,null,null,null,null,null,null,null,null,null,null,null,null,null,null,null,null,null,null,null,null,"Width:",{"$f":"SUM($M$29,$T$29,$AA$29)","v":0}]
[null,null,null,null,null,null,null,null,null,null,null,null,null,null,null,null,null,null,null,null,null,null,null,null,null,null,null,null,null,null,null,null,null,null,null,null,null,null,null,null,null,null,null,null,"F",{"$f":"IF(AND($AT$3>0,$AT$4>0),2*ASIN($AT$15/(2*$AT$5)),0)","v":0},{"$f":"DEGREES(AT16)","v":0}]
[null,null,null,null,null,null,null,null,null,null,{"$f":"IF(AND($Y$17>0,$T$31>0),$AT$19,0)","v":0},null,null,{"$f":"IF(AND($Y$17>0,$T$31>0),$AT$12,0)","v":0},null,null,null,null,null,null,null,null,null,null,null,null,null,{"$f":"IF(AND($Y$17>0,$T$31>0),$AT$19,0)","v":0},null,null,null,null,null,null,null,null,null,null,null,null,null,null,null,null,"d:",{"$f":"IF(AND($AT$3>0,$AT$4>0),$AT$5*COS($AT$16/2),0)","v":0}]
[null,null,null,null,null,null,null,null,null,null,null,null,null,null,null,null,null,null,null,null,null,null,null,null,null,null,null,null,null,null,null,null,null,null,null,null,null,null,null,null,null,null,null,null,"Height:",{"$f":"IF(AND($AT$3>0,$AT$4>0),$AT$5-$AT$17,0)","v":0}]
[null,null,null,null,null,null,null,null,null,null,null,null,null,null,null,null,null,null,null,null,null,null,null,null,null,null,"*",null,null,null,null,null,null,null,null,{"$f":"IF(AND($Y$17>0,$T$31>0),$C$19,0)","v":0},null,null,null,null,null,null,null,null,"Leg Height:",{"$f":"IF(AND($AT$3>0,$AT$4>0),$Y$17-$AT$18,0)","v":0}]
[]
[null,null,"*"]
[]
[]
[]
[]
[]
[]
[]
[null,null,null,null,null,null,null,null,null,null,null,null,null,null,null,null,null,null,null,null,null,"*"]
[]
[null,null,null,null,null,null,"*",null,null,null,null,null,"*",null,null,null,null,null,null,{"$f":"IF(AND($H$29>0,$T$29>0,$AG$29>0),SUM($H$29,$M$29,$T$29,$AA$29,$AG$29),0)","v":0},null,null,null,null,null,null,"*",null,null,null,null,"*"]

{"sheet":"Cont._Radius","index":9,"n_rows":27,"n_cols":47,"rows_kept":27,"cut":false,"hidden":false,"merged":[[26,18,27,19],[8,34,8,35],[23,33,24,33],[23,25,24,27],[8,2,8,3],[6,44,7,45],[23,10,24,12],[12,43,13,46],[12,23,13,25],[15,27,16,29],[1,12,2,21],[3,18,3,19],[3,12,3,15],[23,18,24,19],[23,4,24,4],[15,8,16,10],[14,12,15,14]]}
[]
[null,null,null,null,null,null,null,null,null,null,null,null,"Continuous Radius"]
[null,null,null,null,null,null,null,null,null,null,null,null,null,null,null,null,null,null,null,null,null,null,null,null,null,null,null,null,null,null,null,null,null,null,null,null,null,null,null,null,null,null,null,null,"Height:",{"$f":"X13","v":0}]
[null,null,null,null,null,null,null,null,null,null,null,null,{"$f":"IF($S$27>0,$AT$5,0)","v":0},null,null,null,null,null,null,null,null,null,null,null,null,null,null,null,null,null,null,null,null,null,null,null,null,null,null,null,null,null,null,null,"Width:",{"$f":"S27","v":0}]
[null,null,null,null,null,null,null,null,null,null,null,null,null,null,null,null,null,null,null,null,null,null,null,null,null,null,null,null,null,null,null,null,null,null,null,null,null,null,null,null,null,null,null,null,"R",{"$f":"IF(AND($AT$3>0,$AT$4>0),$AT$3/2+($AT$4^2/(8*$AT$3)),0)","v":0}]
[null,null,null,null,null,null,null,null,null,null,null,null,null,null,null,null,null,null,null,null,null,null,null,null,null,null,null,null,null,null,null,null,null,null,null,null,null,null,null,null,null,null,null,null,"d:",{"$f":"IF(AND($AT$3>0,$AT$4>0),$AT$5-$AT$3,0)","v":0}]
[null,null,null,null,null,null,null,null,null,null,null,null,null,null,null,null,null,null,null,null,null,null,null,null,null,null,null,null,null,null,null,null,null,null,null,null,null,null,null,null,null,null,null,null,"Eyebrow with Leg"]
[]
[null,null,{"$f":"IF($S$27>0,$AT$5,0)","v":0},null,null,null,null,null,null,null,null,null,null,null,null,null,null,null,null,null,null,null,null,null,null,null,null,null,null,null,null,null,null,null,{"$f":"IF($S$27>0,$AT$5,0)","v":0},null,null,null,null,null,null,null,null,null,"F",{"$f":"IF(AND($AT$3>0,$AT$4>0),2*ASIN($S$24/(2*$AT$5)),0)","v":0},{"$f":"DEGREES(AT9)","v":0}]
[null,null,null,null,null,null,null,null,null,null,null,null,null,null,null,null,null,null,null,null,null,null,null,null,null,null,null,null,null,null,null,null,null,null,null,null,null,null,null,null,null,null,null,null,"d:",{"$f":"IF(AND($AT$3>0,$AT$4>0),$AT$5*COS($AT$9/2),0)","v":0}]
[null,null,null,null,null,null,null,null,null,null,null,null,null,null,null,null,null,null,null,null,null,null,null,null,null,null,null,null,null,null,null,null,null,null,null,null,null,null,null,null,null,null,null,null,"Height:",{"$f":"IF(AND($AT$3>0,$AT$4>0),$AT$5-$AT$10,0)","v":0}]
[null,null,null,null,null,null,null,null,null,null,null,null,null,null,null,null,null,null,null,null,null,null,null,null,null,null,null,null,null,null,null,null,null,null,null,null,null,null,null,null,null,null,null,null,"Leg Height:",{"$f":"IF(AND($AT$3>0,$AT$4>0),$X$13-$AT$11,0)","v":0}]
[null,null,null,null,null,null,null,null,null,null,null,null,null,null,null,null,null,null,null,null,null,null,null,null,null,null,null,null,null,null,null,null,null,null,null,null,null,null,null,null,null,null,null,"1/4 Eyebrow with Leg"]
[]
[null,null,null,null,null,null,null,null,null,null,null,null,{"$f":"IF(AND($X$13>0,$S$27>0),$AT$12,0)","v":0},null,null,null,null,null,null,null,null,null,null,"*",null,null,null,null,null,null,null,null,null,null,null,null,null,null,null,null,null,null,null,null,"Width:",{"$f":"SUM($K$24,$S$24,$Z$24)","v":0}]
[null,null,null,null,null,null,null,null,{"$f":"IF(AND($S$27>0,$X$13>0),$AT$19,0)","v":0},null,null,null,null,null,null,null,null,null,null,null,null,null,null,null,null,null,null,{"$f":"$I$16","v":0},null,null,null,null,null,null,null,null,null,null,null,null,null,null,null,null,"F",{"$f":"IF(AND($AT$3>0,$AT$4>0),2*ASIN($AT$15/(2*$AT$5)),0)","v":0},{"$f":"DEGREES(AT16)","v":0}]
[null,null,null,null,null,null,null,null,null,null,null,null,null,null,null,null,null,null,null,null,null,null,null,null,null,null,null,null,null,null,null,null,null,null,null,null,null,null,null,null,null,null,null,null,"d:",{"$f":"IF(AND($AT$3>0,$AT$4>0),$AT$5*COS($AT$16/2),0)","v":0}]
[null,null,null,null,null,null,null,null,null,null,null,null,null,null,null,null,null,null,null,null,null,null,null,null,null,null,null,null,null,null,null,null,null,null,null,null,null,null,null,null,null,null,null,null,"Height:",{"$f":"IF(AND($AT$3>0,$AT$4>0),$AT$5-$AT$17,0)","v":0}]
[null,null,null,null,null,null,null,null,null,null,null,null,null,null,null,null,null,null,null,null,null,null,null,null,null,null,null,null,null,null,null,null,null,null,null,null,null,null,null,null,null,null,null,null,"Leg Height:",{"$f":"IF(AND($AT$3>0,$AT$4>0),$X$13-$AT$18,0)","v":0}]
[]
[]
[]
[]
[]
[]
[null,null,null,null,"*",null,null,null,null,null,"*",null,null,null,null,null,null,null,"*",null,null,null,null,null,null,"*",null,null,null,null,null,null,null,"*"]
[null,null,null,null,null,null,null,null,null,null,null,null,null,null,null,null,null,null,{"$f":"IF(AND(E24>0,S24>0,AH24>0),SUM(E24,K24,S24,Z24,AH24,),0)","v":0}]

{"sheet":"Cont_R_Cent.Hgt","index":10,"n_rows":29,"n_cols":57,"rows_kept":29,"cut":false,"hidden":false,"merged":[[25,11,25,13],[0,1,0,23],[3,9,3,10],[15,13,15,14],[15,21,15,22],[17,2,17,3]]}
[]
[]
[null,null,null,null,null,null,null,null,null,"Custom Radius",null,null,null,null,null,null,null,null,null,null,null,null,null,null,null,null,null,null,null,null,null,null,null,null,null,null,null,null,null,null,null,null,null,null,null,null,null,null,null,null,null,null,"X","Y",null,"A",{"$f":"(X_1*(Y_2-Y_3))-(Y_1*(X_2-X_3))+(X_2*Y_3)-(X_3*Y_2)","v":0}]
[null,null,null,null,null,null,null,null,{"$f":"IF(AND(FW>0,FH>0,LH>0,CH>0,A>=0),\"RADIUS IS CONCAVED >>\",\"\")","v":""},{"$f":"IFERROR(RADIUS,\"N/A\")","v":"N/A"},null,null,null,null,null,null,null,null,null,null,null,null,null,null,null,null,null,null,null,null,null,null,null,null,null,null,null,null,null,null,null,null,null,null,null,null,null,null,null,null,null,null,0,0,null,"B",{"$f":"((X_1^2+Y_1^2)*(Y_3-Y_2))+((X_2^2+Y_2^2)*(Y_1-Y_3))+((X_3^2+Y_3^2)*(Y_2-Y_1))","v":0}]
[null,null,null,null,null,null,null,null,null,null,null,null,null,null,null,null,null,null,null,null,null,null,null,null,null,null,null,null,null,null,null,null,null,null,null,null,null,null,null,null,null,null,null,null,null,null,null,null,null,null,null,null,{"$f":"FW/2","v":0},{"$f":"CH-LH","v":0},null,"C",{"$f":"((X_1^2+Y_1^2)*(X_2-X_3))+((X_2^2+Y_2^2)*(X_3-X_1))+((X_3^2+Y_3^2)*(X_1-X_2))","v":0}]
[null,null,null,null,null,null,null,null,null,null,null,null,null,null,null,null,null,null,null,null,null,null,null,null,null,null,null,null,null,null,null,null,null,null,null,null,null,null,null,null,null,null,null,null,null,null,null,null,null,null,null,null,{"$f":"FW","v":0},{"$f":"FH-LH","v":0},null,"D",{"$f":"((X_1^2+Y_1^2)*((X_3*Y_2)-(X_2*Y_3)))+((X_2^2+Y_2^2)*((X_1*Y_3)-(X_3*Y_1)))+((X_3^2+Y_3^2)*((X_2*Y_1)-(X_1*Y_2)))","v":0}]
[]
[null,null,null,null,null,null,null,null,null,null,null,null,null,null,null,null,null,null,null,null,null,null,null,null,null,null,null,null,null,null,null,null,null,null,null,null,null,null,null,null,null,null,null,null,null,null,null,null,null,null,null,null,null,null,null,"R",{"$f":"SQRT((B^2+CDIM^2-(4*(A*D)))/(4*(A^2)))","v":{"$error":"#DIV/0!"}}]
[]
[]
[]
[]
[]
[null,null,null,null,null,null,null,null,null,null,null,null,null,"Center Hgt."]
[]
[]
[]
[null,null,null,null,null,{"$f":"IF(AND(LH>0,LH<6),\"<< ALL SEGEMENTS MUST BE >6\",\"\")","v":""}]
[]
[]
[]
[]
[]
[]
[]
[]
[]
[]
[null,"Please Check with Min/Max Calculator on the Tech. Center for manufacturing limitations"]